[Event "44th Chess Olympiad Women 2022"]
[Site "Chennai"]
[Date "2022.08.06"]
[Round "8.20"]
[White "Narva, Triin"]
[Black "Ter-Avetisjana, Agnesa Stepania"]
[Result "0-1"]
[WhiteElo "2066"]
[BlackElo "1962"]
[Annotator "NA RC"]
[PlyCount "66"]
[EventDate "2022.??.??"]
[TimeControl "60"]

1. e4 {[%emt 0:00:02]} c6 {[%emt 0:01:36]} 2. Nc3 {[%emt 0:00:11]} d5 {[%emt 0:
00:00]} 3. Nf3 {[%emt 0:00:09]} Bg4 {[%emt 0:00:06]} 4. h3 {[%emt 0:00:07]}
Bxf3 {[%emt 0:01:49]} 5. Qxf3 {[%emt 0:00:06]} e6 {[%emt 0:00:05]} 6. Be2 {
[%emt 0:00:29]} Nf6 {[%emt 0:00:34]} 7. O-O {[%emt 0:00:32]} Be7 {[%emt 0:00:
00]} 8. e5 {[%emt 0:07:56]} Nfd7 {[%emt 0:00:43]} 9. Qg3 {[%emt 0:00:27]} O-O {
[%emt 0:04:44]} 10. d4 {[%emt 0:02:18]} Kh8 {[%emt 0:24:12]} 11. Nd1 {[%emt 0:
00:00]} c5 {[%emt 0:00:00]} 12. c3 {[%emt 0:01:52]} Nc6 {[%emt 0:00:00]} 13.
Be3 {[%emt 0:01:28]} Qb6 {[%emt 0:00:00]} 14. Qg4 {[%emt 0:04:44]} cxd4 {
[%emt 0:00:00]} 15. cxd4 {[%emt 0:02:44]} f5 {[%emt 0:00:00]} 16. exf6 {
[%emt 0:13:58]} Bxf6 {[%emt 0:00:00]} 17. Nc3 {[%emt 0:16:14]} Bxd4 {[%emt 0:
00:00]} 18. Qxe6 {[%emt 0:05:31]} Bxe3 {[%emt 0:01:49]} 19. fxe3 {[%emt 0:00:
00]} Nf6 {[%emt 0:00:50]} 20. Bg4 {[%emt 0:07:16]} Rae8 {[%emt 0:11:24]} 21.
Qd6 {[%emt 0:06:51]} Qxe3+ {[%emt 0:01:41]} 22. Kh1 {[%emt 0:00:05]} Rd8 {
[%emt 0:03:44]} 23. Qa3 {[%emt 0:01:47]} d4 {[%emt 0:02:55]} 24. Rf3 {[%emt 0:
00:00]} Qh6 {[%emt 0:01:55]} 25. Ne4 {[%emt 0:00:43]} Ne5 {[%emt 0:00:05]} 26.
Nxf6 {[%emt 0:00:31]} Nxf3 {[%emt 0:00:34]} 27. Nxh7 {[%emt 0:00:30]} Qxh7 {
[%emt 0:00:29]} 28. Bxf3 {[%emt 0:00:25]} d3 {[%emt 0:00:19]} 29. Rd1 {[%emt 0:
00:00]} Rxf3 {[%emt 0:00:11]} 30. gxf3 {[%emt 0:00:28]} Qxh3+ {[%emt 0:00:03]}
31. Kg1 {[%emt 0:00:07]} Qg3+ {[%emt 0:00:04]} 32. Kh1 {[%emt 0:00:29]} Qxf3+ {
[%emt 0:00:10]} 33. Kh2 {[%emt 0:00:04]} Rd5 {[%emt 0:00:22]} 0-1

[Event "44th Chess Olympiad Women 2022"]
[Site "Chennai"]
[Date "2022.08.06"]
[Round "8.21"]
[White "Chirivi C, Jenny Astrid"]
[Black "Demchenko, Svitlana"]
[Result "0-1"]
[WhiteElo "2157"]
[BlackElo "2122"]
[Annotator "RC"]
[PlyCount "100"]
[EventDate "2022.??.??"]
[TimeControl "60"]

1. d4 {[%emt 0:00:05]} d5 {[%emt 0:00:09]} 2. c4 {[%emt 0:00:14]} e6 {[%emt 0:
00:00]} 3. Nc3 {[%emt 0:00:18]} h6 {[%emt 0:00:07]} 4. Nf3 {[%emt 0:00:55]} Nf6
{[%emt 0:00:09]} 5. Bf4 {[%emt 0:04:41]} Bd6 {[%emt 0:00:14]} 6. e3 {[%emt 0:
00:00]} O-O {[%emt 0:00:53]} 7. Be2 {[%emt 0:07:23]} b6 {[%emt 0:07:06]} 8. O-O
{[%emt 0:04:30]} Bb7 {[%emt 0:05:54]} 9. Bxd6 {[%emt 0:04:29]} Qxd6 {[%emt 0:
00:00]} 10. cxd5 {[%emt 0:01:08]} exd5 {[%emt 0:01:05]} 11. Rc1 {[%emt 0:06:39]
} Qe7 {[%emt 0:03:57]} 12. Ne1 {[%emt 0:07:09]} c5 {[%emt 0:03:12]} 13. dxc5 {
[%emt 0:06:17]} bxc5 {[%emt 0:00:10]} 14. Na4 {[%emt 0:04:36]} Nbd7 {[%emt 0:
00:00]} 15. Nd3 {[%emt 0:07:42]} Rac8 {[%emt 0:04:36]} 16. Bf3 {[%emt 0:01:40]}
Rfd8 {[%emt 0:02:22]} 17. Re1 {[%emt 0:07:21]} Ba6 {[%emt 0:10:01]} 18. g3 {
[%emt 0:07:01]} Bxd3 {[%emt 0:05:02]} 19. Qxd3 {[%emt 0:00:12]} Ne5 {[%emt 0:
00:00]} 20. Qe2 {[%emt 0:03:41]} Nxf3+ {[%emt 0:00:19]} 21. Qxf3 {[%emt 0:00:
00]} Ne4 {[%emt 0:00:18]} 22. Qg2 {[%emt 0:06:24]} Qe8 {[%emt 0:04:09]} 23. b3
{[%emt 0:04:01]} c4 {[%emt 0:03:17]} 24. f3 {[%emt 0:07:09]} Nf6 {[%emt 0:00:
00]} 25. Qd2 {[%emt 0:02:26]} Nd7 {[%emt 0:06:18]} 26. f4 {[%emt 0:02:24]} Nf6
{[%emt 0:02:59]} 27. Nc3 {[%emt 0:02:04]} cxb3 {[%emt 0:01:00]} 28. axb3 {
[%emt 0:00:07]} Qe6 {[%emt 0:00:02]} 29. Nb5 {[%emt 0:01:32]} Ne4 {[%emt 0:00:
00]} 30. Qe2 {[%emt 0:00:20]} Qb6 {[%emt 0:10:06]} 31. Nd4 {[%emt 0:00:32]} Nc5
{[%emt 0:00:05]} 32. Rc3 {[%emt 0:00:51]} Ne6 {[%emt 0:01:45]} 33. Nxe6 {
[%emt 0:00:51]} Rxc3 {[%emt 0:01:21]} 34. Nxd8 {[%emt 0:00:07]} Qxd8 {[%emt 0:
00:00]} 35. b4 {[%emt 0:00:54]} Qb6 {[%emt 0:12:11]} 36. Qd2 {[%emt 0:00:15]}
Rb3 {[%emt 0:01:28]} 37. Qxd5 {[%emt 0:00:46]} Qxb4 {[%emt 0:00:58]} 38. Re2 {
[%emt 0:00:37]} a5 {[%emt 0:01:31]} 39. Kf2 {[%emt 0:00:28]} a4 {[%emt 0:01:09]
} 40. Qc6 {[%emt 0:00:34]} a3 {[%emt 0:01:07]} 41. Rc2 {[%emt 0:13:00]} Rb2 {
[%emt 0:06:08]} 42. Kf3 {[%emt 0:03:55]} Rxc2 {[%emt 0:09:09]} 43. Qxc2 {
[%emt 0:00:37]} Qb7+ {[%emt 0:00:25]} 44. e4 {[%emt 0:03:44]} Qa6 {[%emt 0:00:
00]} 45. Qa2 {[%emt 0:03:10]} Qd3+ {[%emt 0:00:25]} 46. Kg4 {[%emt 0:02:18]} g6
{[%emt 0:01:12]} 47. Kh3 {[%emt 0:04:21]} Qf1+ {[%emt 0:06:57]} 48. Kh4 {
[%emt 0:00:26]} Qc1 {[%emt 0:00:40]} 49. Qd5 {[%emt 0:01:04]} Qb2 {[%emt 0:00:
00]} 50. f5 {[%emt 0:02:09]} a2 {[%emt 0:02:24]} 0-1

[Event "44th Chess Olympiad Women 2022"]
[Site "Chennai"]
[Date "2022.08.06"]
[Round "8.21"]
[White "Mills, Morgen"]
[Black "Argote Heredia, Valentina"]
[Result "0-1"]
[WhiteElo "1993"]
[BlackElo "2205"]
[Annotator "RC"]
[PlyCount "76"]
[EventDate "2022.??.??"]
[TimeControl "60"]

1. e4 {[%emt 0:00:02]} c5 {[%emt 0:00:04]} 2. Nf3 {[%emt 0:00:06]} e6 {[%emt 0:
00:00]} 3. d4 {[%emt 0:00:10]} cxd4 {[%emt 0:00:05]} 4. Nxd4 {[%emt 0:00:06]}
a6 {[%emt 0:00:04]} 5. Bd3 {[%emt 0:00:42]} Bc5 {[%emt 0:00:06]} 6. Nb3 {
[%emt 0:00:28]} Ba7 {[%emt 0:00:04]} 7. Qg4 {[%emt 0:03:30]} Nf6 {[%emt 0:00:
00]} 8. Qg3 {[%emt 0:00:33]} d6 {[%emt 0:00:07]} 9. N1d2 {[%emt 0:03:18]} O-O {
[%emt 0:08:05]} 10. Nf3 {[%emt 0:02:39]} e5 {[%emt 0:03:36]} 11. Bg5 {[%emt 0:
00:00]} Be6 {[%emt 0:01:53]} 12. O-O {[%emt 0:07:02]} Nbd7 {[%emt 0:01:28]} 13.
c4 {[%emt 0:01:45]} Kh8 {[%emt 0:03:08]} 14. Qh4 {[%emt 0:22:48]} h6 {[%emt 0:
00:00]} 15. Rfe1 {[%emt 0:04:18]} Rc8 {[%emt 0:08:42]} 16. Rac1 {[%emt 0:01:28]
} Kg8 {[%emt 0:06:00]} 17. Be3 {[%emt 0:01:17]} Bxe3 {[%emt 0:02:41]} 18. fxe3
{[%emt 0:01:48]} a5 {[%emt 0:03:43]} 19. Qf2 {[%emt 0:04:20]} a4 {[%emt 0:00:
00]} 20. Nbd2 {[%emt 0:00:28]} Nc5 {[%emt 0:01:00]} 21. Bc2 {[%emt 0:08:30]}
Qb6 {[%emt 0:01:01]} 22. b3 {[%emt 0:02:10]} axb3 {[%emt 0:01:50]} 23. axb3 {
[%emt 0:00:17]} Ra8 {[%emt 0:00:06]} 24. Nh4 {[%emt 0:03:44]} Ra2 {[%emt 0:00:
00]} 25. Nf5 {[%emt 0:01:43]} Bxf5 {[%emt 0:01:56]} 26. exf5 {[%emt 0:00:51]}
e4 {[%emt 0:00:51]} 27. Qh4 {[%emt 0:06:51]} Re8 {[%emt 0:01:01]} 28. h3 {
[%emt 0:03:24]} Nd3 {[%emt 0:01:21]} 29. Bxd3 {[%emt 0:00:57]} exd3 {[%emt 0:
00:00]} 30. Rcd1 {[%emt 0:01:12]} Rxe3 {[%emt 0:00:58]} 31. Kh2 {[%emt 0:02:00]
} Re2 {[%emt 0:00:45]} 32. Qf4 {[%emt 0:03:13]} Rf2 {[%emt 0:05:04]} 33. Nf3 {
[%emt 0:03:25]} Rxg2+ {[%emt 0:00:33]} 34. Kh1 {[%emt 0:00:06]} Nh5 {[%emt 0:
00:00]} 35. c5 {[%emt 0:02:38]} Qxc5 {[%emt 0:00:56]} 36. b4 {[%emt 0:04:42]}
Qf2 {[%emt 0:00:48]} 37. Re8+ {[%emt 0:00:36]} Kh7 {[%emt 0:00:07]} 38. Qxh6+ {
[%emt 0:00:41]} gxh6 {[%emt 0:00:53]} 0-1

[Event "44th Chess Olympiad Women 2022"]
[Site "Chennai"]
[Date "2022.08.06"]
[Round "8.21"]
[White "Ouellet, Maili-Jade"]
[Black "Castrillon Gomez, Melissa"]
[Result "0-1"]
[WhiteElo "2239"]
[BlackElo "2230"]
[Annotator "RC"]
[PlyCount "63"]
[EventDate "2022.??.??"]
[TimeControl "60"]

1. d4 {[%emt 0:00:02]} d5 {[%emt 0:00:19]} 2. c4 {[%emt 0:00:07]} dxc4 {
[%emt 0:00:06]} 3. e4 {[%emt 0:00:16]} e5 {[%emt 0:00:20]} 4. Nf3 {[%emt 0:00:
00]} exd4 {[%emt 0:00:22]} 5. Bxc4 {[%emt 0:00:10]} Nc6 {[%emt 0:00:19]} 6. O-O
{[%emt 0:00:41]} Be6 {[%emt 0:00:17]} 7. Bb5 {[%emt 0:00:07]} Bc5 {[%emt 0:00:
00]} 8. b4 {[%emt 0:00:51]} Bb6 {[%emt 0:00:25]} 9. a4 {[%emt 0:00:12]} a6 {
[%emt 0:01:24]} 10. Bxc6+ {[%emt 0:00:07]} bxc6 {[%emt 0:00:03]} 11. a5 {
[%emt 0:01:40]} Ba7 {[%emt 0:00:34]} 12. Ne5 {[%emt 0:02:46]} Ne7 {[%emt 0:00:
00]} 13. Nd2 {[%emt 0:01:29]} O-O {[%emt 0:03:29]} 14. Qc2 {[%emt 0:01:04]} Qe8
{[%emt 0:07:43]} 15. Ndf3 {[%emt 0:03:54]} f6 {[%emt 0:02:08]} 16. Nd3 {
[%emt 0:01:29]} Bg4 {[%emt 0:10:36]} 17. Nfe1 {[%emt 0:06:50]} Qf7 {[%emt 0:00:
00]} 18. h3 {[%emt 0:05:05]} Be6 {[%emt 0:02:01]} 19. Bf4 {[%emt 0:01:11]} Bb3
{[%emt 0:11:57]} 20. Qc1 {[%emt 0:06:15]} Ng6 {[%emt 0:07:30]} 21. Qxc6 {
[%emt 0:21:50]} Nxf4 {[%emt 0:03:07]} 22. Nxf4 {[%emt 0:00:05]} Qc4 {[%emt 0:
00:00]} 23. Rc1 {[%emt 0:10:24]} Qxc6 {[%emt 0:01:39]} 24. Rxc6 {[%emt 0:00:15]
} Ba4 {[%emt 0:00:02]} 25. Rc1 {[%emt 0:04:39]} Rae8 {[%emt 0:08:05]} 26. Nfd3
{[%emt 0:07:25]} c6 {[%emt 0:02:00]} 27. f3 {[%emt 0:01:28]} Bb5 {[%emt 0:00:
00]} 28. Rf2 {[%emt 0:01:50]} Bb8 {[%emt 0:05:36]} 29. Rd1 {[%emt 0:03:35]} f5
{[%emt 0:02:37]} 30. Nc5 {[%emt 0:00:38]} Bg3 {[%emt 0:01:45]} 31. Rb2 {
[%emt 0:03:52]} fxe4 {[%emt 0:05:50]} 32. Rbb1 {[%emt 0:04:51]} 0-1

[Event "44th Chess Olympiad Women 2022"]
[Site "Chennai"]
[Date "2022.08.06"]
[Round "8.21"]
[White "Rodriguez Rueda, Paula Andrea"]
[Black "Guo, Yu Han"]
[Result "0-1"]
[WhiteElo "2237"]
[BlackElo "1630"]
[Annotator "NA RC"]
[PlyCount "80"]
[EventDate "2022.??.??"]
[TimeControl "60"]

1. d4 {[%emt 0:00:03]} d5 {[%emt 0:00:15]} 2. c4 {[%emt 0:00:08]} e6 {[%emt 0:
00:00]} 3. Nc3 {[%emt 0:00:16]} Be7 {[%emt 0:00:16]} 4. Nf3 {[%emt 0:00:09]}
Nf6 {[%emt 0:00:19]} 5. Bf4 {[%emt 0:00:05]} O-O {[%emt 0:00:25]} 6. e3 {
[%emt 0:00:11]} b6 {[%emt 0:00:46]} 7. Be2 {[%emt 0:08:03]} Bb7 {[%emt 0:01:22]
} 8. Ne5 {[%emt 0:01:56]} Nbd7 {[%emt 0:05:10]} 9. O-O {[%emt 0:04:37]} c5 {
[%emt 0:03:36]} 10. cxd5 {[%emt 0:02:05]} Nxe5 {[%emt 0:05:22]} 11. d6 {
[%emt 0:05:11]} Ng6 {[%emt 0:08:10]} 12. dxe7 {[%emt 0:00:06]} Qxe7 {[%emt 0:
00:00]} 13. Bg3 {[%emt 0:04:38]} Rfd8 {[%emt 0:01:37]} 14. Qa4 {[%emt 0:13:23]}
cxd4 {[%emt 0:04:48]} 15. exd4 {[%emt 0:00:04]} Qd7 {[%emt 0:08:58]} 16. Qa3 {
[%emt 0:08:37]} Nd5 {[%emt 0:03:12]} 17. Nxd5 {[%emt 0:01:04]} Qxd5 {[%emt 0:
00:00]} 18. Bf3 {[%emt 0:00:19]} Qd7 {[%emt 0:00:07]} 19. Bxb7 {[%emt 0:01:15]}
Qxb7 {[%emt 0:00:06]} 20. Rac1 {[%emt 0:00:13]} Rd7 {[%emt 0:00:42]} 21. Rc4 {
[%emt 0:13:04]} Rc8 {[%emt 0:04:48]} 22. Rxc8+ {[%emt 0:21:49]} Qxc8 {[%emt 0:
00:00]} 23. h3 {[%emt 0:05:12]} h6 {[%emt 0:00:57]} 24. Qc3 {[%emt 0:02:48]}
Qd8 {[%emt 0:03:02]} 25. Qa3 {[%emt 0:02:31]} a5 {[%emt 0:04:42]} 26. Qc3 {
[%emt 0:00:37]} Ne7 {[%emt 0:03:58]} 27. Rc1 {[%emt 0:02:14]} Rxd4 {[%emt 0:00:
00]} 28. Kh2 {[%emt 0:00:06]} Rd1 {[%emt 0:03:20]} 29. Rc2 {[%emt 0:02:08]} Qd3
{[%emt 0:03:05]} 30. Qxd3 {[%emt 0:00:43]} Rxd3 {[%emt 0:00:04]} 31. Be5 {
[%emt 0:01:43]} Nd5 {[%emt 0:01:29]} 32. a3 {[%emt 0:00:05]} Kh7 {[%emt 0:00:
00]} 33. Rc6 {[%emt 0:00:52]} Kg6 {[%emt 0:02:03]} 34. h4 {[%emt 0:00:41]} h5 {
[%emt 0:03:39]} 35. Bd6 {[%emt 0:00:31]} Rd2 {[%emt 0:00:40]} 36. b4 {[%emt 0:
00:00]} axb4 {[%emt 0:00:14]} 37. axb4 {[%emt 0:00:12]} Rxf2 {[%emt 0:00:44]}
38. Be5 {[%emt 0:00:35]} Re2 {[%emt 0:00:49]} 39. Bd4 {[%emt 0:00:10]} Re4 {
[%emt 0:00:31]} 40. Bxb6 {[%emt 0:00:39]} Rxh4+ {[%emt 0:00:45]} 0-1

[Event "44th Chess Olympiad Women 2022"]
[Site "Chennai"]
[Date "2022.08.06"]
[Round "8.22"]
[White "Campos, Maria Jose"]
[Black "Abdi, Zineb Dina"]
[Result "1-0"]
[WhiteElo "2185"]
[BlackElo "1899"]
[Annotator "NA RC"]
[PlyCount "81"]
[EventDate "2022.??.??"]
[TimeControl "60"]

1. c4 {[%emt 0:00:17]} e6 {[%emt 0:00:20]} 2. g3 {[%emt 0:00:24]} Nf6 {[%emt 0:
00:00]} 3. Bg2 {[%emt 0:00:40]} d5 {[%emt 0:00:24]} 4. Nf3 {[%emt 0:00:18]}
dxc4 {[%emt 0:00:58]} 5. Qa4+ {[%emt 0:00:34]} Nbd7 {[%emt 0:00:26]} 6. Qxc4 {
[%emt 0:01:23]} c5 {[%emt 0:00:56]} 7. O-O {[%emt 0:00:33]} a6 {[%emt 0:00:29]}
8. Qb3 {[%emt 0:01:35]} Be7 {[%emt 0:05:34]} 9. Nc3 {[%emt 0:01:28]} O-O {
[%emt 0:01:42]} 10. Rd1 {[%emt 0:00:42]} Nb6 {[%emt 0:11:06]} 11. d3 {[%emt 0:
00:00]} Nbd5 {[%emt 0:05:46]} 12. a4 {[%emt 0:01:13]} Rb8 {[%emt 0:05:52]} 13.
a5 {[%emt 0:02:36]} b5 {[%emt 0:12:58]} 14. axb6 {[%emt 0:00:59]} Rxb6 {
[%emt 0:00:16]} 15. Qc2 {[%emt 0:00:19]} Nb4 {[%emt 0:03:20]} 16. Qb1 {[%emt 0:
00:00]} Nfd5 {[%emt 0:02:39]} 17. Nd2 {[%emt 0:04:46]} Bf6 {[%emt 0:07:48]} 18.
Nce4 {[%emt 0:01:25]} Qc7 {[%emt 0:02:58]} 19. Nc4 {[%emt 0:00:11]} Rb5 {
[%emt 0:02:54]} 20. Bd2 {[%emt 0:04:35]} Rd8 {[%emt 0:02:13]} 21. Rc1 {[%emt 0:
00:00]} Be7 {[%emt 0:01:48]} 22. Na3 {[%emt 0:03:27]} Rb6 {[%emt 0:02:46]} 23.
Rc4 {[%emt 0:02:44]} f5 {[%emt 0:05:23]} 24. Nxc5 {[%emt 0:03:08]} Qe5 {
[%emt 0:03:30]} 25. e3 {[%emt 0:04:24]} a5 {[%emt 0:06:11]} 26. d4 {[%emt 0:00:
00]} Qb8 {[%emt 0:00:20]} 27. Rc1 {[%emt 0:03:14]} Na6 {[%emt 0:04:23]} 28. Nc4
{[%emt 0:01:13]} Nxc5 {[%emt 0:01:18]} 29. dxc5 {[%emt 0:05:08]} Rb3 {[%emt 0:
00:00]} 30. Bxa5 {[%emt 0:00:00]} Re8 {[%emt 0:02:17]} 31. Nb6 {[%emt 0:00:28]}
Bf6 {[%emt 0:01:39]} 32. Nxd5 {[%emt 0:01:05]} exd5 {[%emt 0:00:07]} 33. Bxd5+
{[%emt 0:00:10]} Be6 {[%emt 0:00:19]} 34. Bxe6+ {[%emt 0:01:08]} Rxe6 {[%emt 0:
00:00]} 35. Qxf5 {[%emt 0:00:21]} Re5 {[%emt 0:00:27]} 36. Qf3 {[%emt 0:00:28]}
Qc8 {[%emt 0:00:48]} 37. Bc3 {[%emt 0:00:57]} Rf5 {[%emt 0:00:29]} 38. Ra8 {
[%emt 0:04:38]} Rxf3 {[%emt 0:00:47]} 39. Rxc8+ {[%emt 0:00:05]} Kf7 {[%emt 0:
00:00]} 40. Bxf6 {[%emt 0:00:04]} Rxf6 {[%emt 0:01:01]} 41. Rc2 {[%emt 0:30:49]
} 1-0

[Event "44th Chess Olympiad Women 2022"]
[Site "Chennai"]
[Date "2022.08.06"]
[Round "8.22"]
[White "Nassr, Lina"]
[Black "Zuriel, Marisa"]
[Result "1/2-1/2"]
[WhiteElo "2011"]
[BlackElo "2174"]
[Annotator "RC"]
[PlyCount "95"]
[EventDate "2022.??.??"]
[TimeControl "60"]

1. d4 {[%emt 0:00:08]} Nf6 {[%emt 0:00:10]} 2. Nf3 {[%emt 0:00:15]} c5 {
[%emt 0:00:07]} 3. e3 {[%emt 0:00:29]} g6 {[%emt 0:00:08]} 4. Be2 {[%emt 0:00:
00]} Bg7 {[%emt 0:00:07]} 5. O-O {[%emt 0:00:24]} O-O {[%emt 0:00:08]} 6. dxc5
{[%emt 0:00:53]} Qa5 {[%emt 0:00:51]} 7. a3 {[%emt 0:00:57]} Qxc5 {[%emt 0:00:
00]} 8. b4 {[%emt 0:00:49]} Qc7 {[%emt 0:00:09]} 9. c4 {[%emt 0:01:03]} b6 {
[%emt 0:15:20]} 10. Bb2 {[%emt 0:01:52]} Bb7 {[%emt 0:00:04]} 11. Nc3 {[%emt 0:
00:00]} d6 {[%emt 0:01:05]} 12. Qb3 {[%emt 0:02:22]} Nbd7 {[%emt 0:00:49]} 13.
Rac1 {[%emt 0:01:58]} Rfc8 {[%emt 0:04:32]} 14. Nd4 {[%emt 0:08:15]} a6 {
[%emt 0:04:58]} 15. h3 {[%emt 0:03:56]} Ne4 {[%emt 0:06:01]} 16. Rfd1 {[%emt 0:
00:00]} Nxc3 {[%emt 0:04:09]} 17. Bxc3 {[%emt 0:02:40]} Nf6 {[%emt 0:00:55]}
18. Nf3 {[%emt 0:01:56]} Ne4 {[%emt 0:06:28]} 19. Bxg7 {[%emt 0:03:29]} Kxg7 {
[%emt 0:00:04]} 20. Qb2+ {[%emt 0:01:14]} Nf6 {[%emt 0:03:02]} 21. h4 {[%emt 0:
00:00]} h5 {[%emt 0:02:38]} 22. Ng5 {[%emt 0:02:25]} Kg8 {[%emt 0:04:19]} 23.
Rd4 {[%emt 0:04:52]} e5 {[%emt 0:06:08]} 24. Rdd1 {[%emt 0:05:53]} Ne4 {
[%emt 0:01:14]} 25. Nxe4 {[%emt 0:09:38]} Bxe4 {[%emt 0:00:12]} 26. Bd3 {
[%emt 0:01:06]} Bb7 {[%emt 0:01:12]} 27. Qc2 {[%emt 0:02:47]} f5 {[%emt 0:00:
00]} 28. Bf1 {[%emt 0:04:08]} Rd8 {[%emt 0:10:06]} 29. Qb3 {[%emt 0:08:10]} Kg7
{[%emt 0:00:31]} 30. Rc2 {[%emt 0:00:35]} Rac8 {[%emt 0:01:50]} 31. Rcd2 {
[%emt 0:00:46]} Qe7 {[%emt 0:00:27]} 32. Qb2 {[%emt 0:03:12]} Kh7 {[%emt 0:00:
00]} 33. g3 {[%emt 0:05:38]} Rc7 {[%emt 0:02:00]} 34. f4 {[%emt 0:02:37]} Bf3 {
[%emt 0:13:13]} 35. Rc1 {[%emt 0:00:05]} Rcd7 {[%emt 0:00:12]} 36. Bg2 {
[%emt 0:00:38]} Bxg2 {[%emt 0:00:32]} 37. Kxg2 {[%emt 0:00:02]} exf4 {[%emt 0:
00:00]} 38. exf4 {[%emt 0:00:01]} Qe4+ {[%emt 0:00:04]} 39. Kf2 {[%emt 0:00:53]
} Qe6 {[%emt 0:04:59]} 40. Re2 {[%emt 0:00:33]} Qf7 {[%emt 0:00:04]} 41. Rce1 {
[%emt 0:05:07]} Qg7 {[%emt 0:04:57]} 42. Qxg7+ {[%emt 0:07:46]} Kxg7 {[%emt 0:
00:00]} 43. Re7+ {[%emt 0:01:39]} Kf8 {[%emt 0:00:08]} 44. Rxd7 {[%emt 0:00:34]
} Rxd7 {[%emt 0:00:04]} 45. Rd1 {[%emt 0:00:22]} Ke7 {[%emt 0:00:09]} 46. Ke3 {
[%emt 0:00:41]} Kd8 {[%emt 0:06:44]} 47. Kd4 {[%emt 0:02:03]} Re7 {[%emt 0:00:
00]} 48. Rd3 {[%emt 0:03:47]} 1/2-1/2

[Event "44th Chess Olympiad Women 2022"]
[Site "Chennai"]
[Date "2022.08.06"]
[Round "8.22"]
[White "Nassr, Rania"]
[Black "Borda Rodas, Anapaola S."]
[Result "0-1"]
[WhiteElo "1737"]
[BlackElo "2183"]
[Annotator "NA RC"]
[PlyCount "88"]
[EventDate "2022.??.??"]
[TimeControl "60"]

1. d4 {[%emt 0:00:07]} Nf6 {[%emt 0:00:07]} 2. Nf3 {[%emt 0:00:17]} g6 {
[%emt 0:00:07]} 3. g3 {[%emt 0:00:12]} Bg7 {[%emt 0:00:16]} 4. Bg2 {[%emt 0:00:
00]} O-O {[%emt 0:00:14]} 5. O-O {[%emt 0:00:13]} d5 {[%emt 0:00:20]} 6. c4 {
[%emt 0:00:33]} dxc4 {[%emt 0:00:25]} 7. Na3 {[%emt 0:00:38]} Nc6 {[%emt 0:00:
00]} 8. Nxc4 {[%emt 0:01:13]} Be6 {[%emt 0:00:05]} 9. b3 {[%emt 0:06:04]} Bd5 {
[%emt 0:01:04]} 10. Bb2 {[%emt 0:03:07]} a5 {[%emt 0:00:58]} 11. Nfe5 {[%emt 0:
00:00]} Bxg2 {[%emt 0:09:33]} 12. Kxg2 {[%emt 0:00:26]} Nxe5 {[%emt 0:02:44]}
13. Nxe5 {[%emt 0:00:19]} a4 {[%emt 0:05:49]} 14. Nf3 {[%emt 0:10:11]} Qd5 {
[%emt 0:03:01]} 15. Qd3 {[%emt 0:11:11]} a3 {[%emt 0:06:25]} 16. Bc3 {[%emt 0:
00:00]} Ne4 {[%emt 0:00:19]} 17. Rac1 {[%emt 0:09:59]} g5 {[%emt 0:12:33]} 18.
Kg1 {[%emt 0:00:47]} c5 {[%emt 0:09:33]} 19. Ba1 {[%emt 0:12:34]} g4 {[%emt 0:
00:00]} 20. Nd2 {[%emt 0:02:08]} Nxd2 {[%emt 0:03:34]} 21. Rxc5 {[%emt 0:02:57]
} Nf3+ {[%emt 0:03:19]} 22. exf3 {[%emt 0:00:13]} Qxf3 {[%emt 0:00:12]} 23. Qe3
{[%emt 0:04:43]} e6 {[%emt 0:02:00]} 24. Rg5 {[%emt 0:04:50]} h6 {[%emt 0:00:
00]} 25. Rc5 {[%emt 0:02:15]} Rfd8 {[%emt 0:03:29]} 26. h3 {[%emt 0:03:49]}
Rac8 {[%emt 0:01:58]} 27. hxg4 {[%emt 0:08:18]} Qxe3 {[%emt 0:01:24]} 28. fxe3
{[%emt 0:00:50]} Rxc5 {[%emt 0:00:05]} 29. dxc5 {[%emt 0:00:21]} Bxa1 {[%emt 0:
00:00]} 30. Rxa1 {[%emt 0:00:26]} Rd2 {[%emt 0:00:05]} 31. Kf1 {[%emt 0:01:43]}
Kg7 {[%emt 0:00:04]} 32. Ke1 {[%emt 0:00:54]} Rh2 {[%emt 0:00:08]} 33. Rc1 {
[%emt 0:01:09]} Rxa2 {[%emt 0:00:12]} 34. Kd1 {[%emt 0:01:42]} Rb2 {[%emt 0:00:
00]} 35. Ra1 {[%emt 0:00:17]} Rxb3 {[%emt 0:00:11]} 36. Kd2 {[%emt 0:00:24]}
Kg6 {[%emt 0:00:09]} 37. Rc1 {[%emt 0:01:18]} a2 {[%emt 0:01:56]} 38. Ra1 {
[%emt 0:00:14]} Ra3 {[%emt 0:00:07]} 39. Kc2 {[%emt 0:00:11]} Kg5 {[%emt 0:00:
00]} 40. Kb2 {[%emt 0:00:10]} Ra5 {[%emt 0:00:14]} 41. Rxa2 {[%emt 0:30:28]}
Rxa2+ {[%emt 0:30:21]} 42. Kxa2 {[%emt 0:00:06]} Kxg4 {[%emt 0:00:06]} 43. Kb3
{[%emt 0:00:05]} Kxg3 {[%emt 0:00:05]} 44. Kb4 {[%emt 0:00:25]} h5 {[%emt 0:00:
00]} 0-1

[Event "44th Chess Olympiad Women 2022"]
[Site "Chennai"]
[Date "2022.08.06"]
[Round "8.22"]
[White "Sarquis, Maria Belen"]
[Black "Hamza, Amira"]
[Result "1-0"]
[WhiteElo "2072"]
[BlackElo "1848"]
[Annotator "NA RC"]
[PlyCount "47"]
[EventDate "2022.??.??"]
[TimeControl "60"]

1. e4 {[%emt 0:00:03]} e6 {[%emt 0:00:21]} 2. d4 {[%emt 0:00:06]} d5 {[%emt 0:
00:00]} 3. Nd2 {[%emt 0:00:14]} dxe4 {[%emt 0:00:16]} 4. Nxe4 {[%emt 0:00:09]}
Nd7 {[%emt 0:00:15]} 5. Nf3 {[%emt 0:00:49]} Ngf6 {[%emt 0:00:23]} 6. Nxf6+ {
[%emt 0:01:01]} Nxf6 {[%emt 0:00:09]} 7. Bd3 {[%emt 0:00:20]} c5 {[%emt 0:00:
00]} 8. c3 {[%emt 0:02:58]} Be7 {[%emt 0:04:19]} 9. O-O {[%emt 0:01:16]} O-O {
[%emt 0:00:23]} 10. Ne5 {[%emt 0:09:54]} Qc7 {[%emt 0:06:28]} 11. Qf3 {[%emt 0:
00:00]} Rd8 {[%emt 0:03:10]} 12. Bf4 {[%emt 0:12:58]} Bd6 {[%emt 0:04:04]} 13.
Rfe1 {[%emt 0:04:44]} Bd7 {[%emt 0:28:14]} 14. Bg5 {[%emt 0:04:01]} Bc6 {
[%emt 0:09:28]} 15. Qh3 {[%emt 0:02:44]} Be7 {[%emt 0:00:51]} 16. Ng4 {[%emt 0:
00:00]} Rac8 {[%emt 0:07:53]} 17. Nxf6+ {[%emt 0:06:18]} Bxf6 {[%emt 0:00:15]}
18. Bxf6 {[%emt 0:01:50]} gxf6 {[%emt 0:00:20]} 19. Qh6 {[%emt 0:03:25]} cxd4 {
[%emt 0:07:44]} 20. Bxh7+ {[%emt 0:01:36]} Kh8 {[%emt 0:00:05]} 21. cxd4 {
[%emt 0:05:21]} Bd5 {[%emt 0:09:07]} 22. Bc2+ {[%emt 0:03:59]} Kg8 {[%emt 0:00:
00]} 23. Re3 {[%emt 0:01:01]} Qxc2 {[%emt 0:01:38]} 24. Rh3 {[%emt 0:00:42]}
1-0